{"text_format":"1","workbook":"xlsx","n_sheets":3,"sheets":["Eingabe","Quittung","Berechnungstabelle"],"not_rendered":{"charts":0,"images":2,"macros":1,"external_links":0,"defined_names":2,"comments":1,"pivot_tables":0},"unopened":[],"bounds":{"document_bytes":16777216,"sheet_cells":100000,"rows_first":2000,"rows_last":500,"rows_between":2000,"halvings":0,"cell_chars":16384,"cell_head_chars":4096},"cells_cut":0,"cells_raw":0,"read":"whole","date_system":"1900"}

{"sheet":"Eingabe","index":0,"n_rows":85,"n_cols":6,"rows_kept":85,"cut":false,"hidden":false,"merged":[[14,4,14,5],[15,4,15,5],[16,4,16,5],[25,4,25,5],[26,4,26,5],[24,4,24,5],[17,4,17,5],[18,4,18,5],[19,4,19,5],[20,4,20,5],[21,4,21,5],[22,4,22,5],[23,4,23,5],[27,4,27,5],[28,4,28,5],[29,4,29,5],[30,4,30,5],[31,4,31,5],[6,2,6,3],[62,1,64,1],[62,0,64,0],[62,2,62,3],[54,2,54,3],[58,2,58,3],[38,0,38,4],[53,0,53,4],[57,0,57,4],[10,4,10,5],[11,4,11,5],[12,4,12,5],[13,4,13,5],[32,4,32,5],[33,4,33,5],[34,4,34,5],[10,1,10,2],[11,1,11,2],[12,1,12,2],[13,1,13,2],[14,1,14,2],[15,1,15,2],[16,1,16,2],[17,1,17,2],[18,1,18,2],[19,1,19,2],[20,1,20,2],[21,1,21,2],[22,1,22,2],[23,1,23,2],[35,1,35,2],[65,2,65,3],[24,1,24,2],[25,1,25,2],[26,1,26,2],[27,1,27,2],[28,1,28,2],[30,1,30,2],[31,1,31,2],[32,1,32,2],[33,1,33,2],[34,1,34,2],[29,1,29,2],[50,0,50,4],[61,1,61,5],[47,0,47,5],[35,4,35,5]]}
["Berechnung des Vorsteuerabzugsrechts bei Dienststellen"]
["Die Ausführungen der MWST-Branchen-Info 19 Gemeinwesen, insbesondere des Kapitels F.3, sind zu beachten."]
["Bitte füllen Sie die grau hinterlegten Zellen aus. Die übrigen Zellen sind nicht zu verändern, damit die korrekte Berechnung des Vorsteuerabzugs gewahrt bleibt."]
[]
[null,"Jahr",2024,null,"Steuersatz",8.1000000000000003E-2]
[]
[null,"Gemeinwesen / DS",null,null,"MWST-Nr."]
[]
["1. Erfassen der Erträge gemäss Jahresrechnung (ER und IR)"]
["Konto","Bezeichnung",null,"Betrag","MWST-rechtliche Qualifikation"]
[]
[]
[]
[]
[]
[]
[]
[]
[]
[]
[]
[]
[]
[]
[]
[]
[]
[]
[]
[]
[]
[]
[]
[]
[]
[]
["Total",null,null,{"$f":"SUM(D11:D36)","v":0}]
[]
["2. Erfassen der in den MWST-Abrechnungen deklarierten Vorsteuer und der in der Vorsteuerabstimmung festgestellten Differenzen"]
["Quartal",null,null,"ER (Z 400)","IR (Z 405)"]
[{"$f":"\"Q01 / \" & C$5","v":"Q01 / 2024"}]
[{"$f":"\"Q02 / \" & C$5","v":"Q02 / 2024"}]
[{"$f":"\"Q03 / \" & C$5","v":"Q03 / 2024"}]
[{"$f":"\"Q04 / \" & C$5","v":"Q04 / 2024"}]
["Differenz gem. Vorsteuerabstimmung:"]
["Total",null,null,{"$f":"SUM(Eingabe!$D$41:$D$45)","v":0},{"$f":"SUM(Eingabe!$E$41:$E$45)","v":0}]
[]
[{"$f":"\"3. Erfassen der für die Überprüfung und Berechnung einer allfälligen partiellen Nutzungsänderung relevanten Zahlen gemäss Jahresrechnung \n    des Vorjahres\" &\" (\" &C5-1 &\")\"","v":"3. Erfassen der für die Überprüfung und Berechnung einer allfälligen partiellen Nutzungsänderung relevanten Zahlen gemäss Jahresrechnung \n    des Vorjahres (2023)"}]
["Beschreibung",null,"  ","   ","   ","Betrag"]
["Einnahmen aus steuerbaren und optierten Leistungen"]
["Von der Steuer ausgenommene Inlandleistungen, für die nicht optiert wurde / ohne Zinseinnahmen und ohne Einnahmen aus Wertpapierhandel"]
["Nicht-objektbezogene Einnahmen aus hoheitlicher Tätigkeit"]
[]
["4. Berechnungsmethode der Vorsteuerkürzung aufgrund objektbezogener Subventionen"]
["Gewählte Berechnungsmethode:",null,"Stille Versteuerung"]
[null,null,null,{"$f":"IF(C55=\"Stille Versteuerung\",\"--> es sind keine zusätzlichen Eingaben notwendig\",IF(E56>0,\"--> Resultat der eigenen Berechnung:\",\"Bitte Betrag eingeben\"))","v":"--> es sind keine zusätzlichen Eingaben notwendig"}]
[]
["5. Berechnungsmethode der Vorsteuerkorrektur aufgrund objektbezogener hoheitlicher Tätigkeit"]
["Gewählte Berechnungsmethode:",null,"Stille Versteuerung"]
[null,null,null,{"$f":"IF(C59=\"Stille Versteuerung\",\"--> es sind keine zusätzlichen Eingaben notwendig\",IF(E60>0,\"--> Resultat der eigenen Berechnung:\",\"Bitte Betrag eingeben\"))","v":"--> es sind keine zusätzlichen Eingaben notwendig"}]
[]
["6. Nutzungsänderung",{"$f":"IF(B67-B66>20,\"--> nachfolgende blaue Zellen müssen ausgefüllt werden\",IF(B66-B67>20,\"--> nachfolgende blaue Zellen müssen ausgefüllt werden\",\"nachfolgende blaue Zellen müssen NICHT ausgefüllt werden\"))","v":"nachfolgende blaue Zellen müssen NICHT ausgefüllt werden"}]
["Jahr","Bisherige Nutzung im ausgenommenen und hoheitlichen Bereich","Abschreibungsdauer"]
[]
[null,null,"20 Jahre","5 Jahre"]
[{"$f":"C5","v":2024},{"$f":"IF(Berechnungstabelle!G105=0,0,Berechnungstabelle!G92*100)","v":0},"angefallene Vorsteuer"]
[{"$f":"A66-1","v":2023},{"$f":"IF(Berechnungstabelle!G101=0,0,Berechnungstabelle!G101*100)","v":0}]
[2022]
[2021]
[2020]
[2019]
[2018]
[2017]
[2016]
[2015]
[2014]
[2013]
[2012]
[2011]
[2010]
[2009]
[2008]
[2007]
[2006]
[2005]

{"sheet":"Quittung","index":1,"n_rows":215,"n_cols":8,"rows_kept":215,"cut":false,"hidden":false,"merged":[[0,5,0,7],[109,5,109,7],[143,0,143,6],[40,0,40,3],[5,0,5,6],[94,1,94,5],[65,0,65,3],[52,0,52,3],[64,0,64,3],[73,0,73,3],[4,0,4,7],[3,0,3,7],[2,0,2,7],[1,0,1,7],[27,0,27,3]]}
[null,null,null,null,null,"Eidgenössisches Finanzdepartement EFD\n\nEidgenössische Steuerverwaltung ESTV\nHauptabteilung Mehrwertsteuer"]
["Berechnung des Vorsteuerabzugsrechts"]
[{"$f":"Eingabe!C7","v":0}]
[{"$f":"Eingabe!F7","v":0}]
[{"$f":"\"Jahr \" &Eingabe!C5","v":"Jahr 2024"}]
["Erfasste Zahlen gemäss Jahresrechnung - Total pro Ertragsart"]
["Qualifikation",null,null,"Bemerkungen","   ","Betrag"]
["steuerbar/optiert",null,null,null,null,{"$f":"SUMIF(Eingabe!$E$10:$E$36,A8,Eingabe!$D$10:$D$36)","v":0}]
["befreit",null,null,"(u.a. Exporte)",null,{"$f":"SUMIF(Eingabe!$E$10:$E$36,A9,Eingabe!$D$10:$D$36)","v":0}]
["Ausland",null,null,"(Leistungen im Ausland)",null,{"$f":"SUMIF(Eingabe!$E$10:$E$36,A10,Eingabe!$D$10:$D$36)","v":0}]
["Meldeverfahren",null,null,null,null,{"$f":"SUMIF(Eingabe!$E$10:$E$36,A11,Eingabe!$D$10:$D$36)","v":0}]
["Zinseinnahmen",null,null,"(ausgenommen)",null,{"$f":"SUMIF(Eingabe!$E$10:$E$36,A12,Eingabe!$D$10:$D$36)","v":0}]
["Einnahmen aus Wertpapierhandel",null,null,"(ausgenommen)",null,{"$f":"SUMIF(Eingabe!$E$10:$E$36,A13,Eingabe!$D$10:$D$36)","v":0}]
["übr. ausgenommene Leistungen",null,null,"(übrige ausgenommene)",null,{"$f":"SUMIF(Eingabe!$E$10:$E$36,A14,Eingabe!$D$10:$D$36)","v":0}]
["Diverses (z.B. Wert des Bodens)",null,null,null,null,{"$f":"SUMIF(Eingabe!$E$10:$E$36,A15,Eingabe!$D$10:$D$36)","v":0}]
["Subvention objektbezogen",null,null,null,null,{"$f":"SUMIF(Eingabe!$E$10:$E$36,A16,Eingabe!$D$10:$D$36)","v":0}]
["Subvention nicht objektbezogen",null,null,null,null,{"$f":"SUMIF(Eingabe!$E$10:$E$36,A17,Eingabe!$D$10:$D$36)","v":0}]
["Spenden",null,null,null,null,{"$f":"SUMIF(Eingabe!$E$10:$E$36,A18,Eingabe!$D$10:$D$36)","v":0}]
["hoheitlich objektbezogen",null,null,null,null,{"$f":"SUMIF(Eingabe!$E$10:$E$36,A19,Eingabe!$D$10:$D$36)","v":0}]
["hoheitlich nicht objektbezogen",null,null,null,null,{"$f":"SUMIF(Eingabe!$E$10:$E$36,A20,Eingabe!$D$10:$D$36)","v":0}]
["übr. Nicht-Entgelte Art.18/2/d - k MWSTG objektbezogen",null,null,null,null,{"$f":"SUMIF(Eingabe!$E$10:$E$36,A21,Eingabe!$D$10:$D$36)","v":0}]
["übr. Nicht-Entgelte Art.18/2/d - k MWSTG nicht objektbezogen",null,null,null,null,{"$f":"SUMIF(Eingabe!$E$10:$E$36,A22,Eingabe!$D$10:$D$36)","v":0}]
["unbeachtlich",null,null,null,null,{"$f":"SUMIF(Eingabe!$E$10:$E$36,A23,Eingabe!$D$10:$D$36)","v":0}]
["Total",null,null,null,null,{"$f":"SUM(F8:F23)","v":0}]
[]
[]
["Berechnung der Vorsteuerkürzung und Vorsteuerkorrektur",null,null,null,null,"Betrag","Betrag"]
["Angefallene objektbezogene Vorsteuer",null,null,null,null,null,{"$f":"Eingabe!E46","v":0}]
[]
["Vorsteuerkürzung aufgrund objektbezogener Subventionen"]
[{"$f":"IF(Eingabe!C55=\"eigene Berechnung\",\"Eigene Berechnung\",Berechnungstabelle!A4)","v":"Subvention (objektbezogen)"},null,null,null,{"$f":"IF(A31=\"Eigene Berechnung\",\"\",Berechnungstabelle!G4)","v":1.081},{"$f":"IF(Eingabe!C55=\"Eigene Berechnung\",Berechnungstabelle!F14,Berechnungstabelle!F4)","v":0}]
[{"$f":"IF(Eingabe!C55=\"eigene Berechnung\",\"\",Berechnungstabelle!A5)","v":"Vorsteuerkürzung objektbezogen"},null,null,null,{"$f":"IF(A31=\"Eigene Berechnung\",\"\",Berechnungstabelle!G5)","v":8.0999999999999961E-2},{"$f":"IF(A31=\"Eigene Berechnung\",\"\",Berechnungstabelle!F5)","v":0},{"$f":"IF(Eingabe!C55=\"eigene Berechnung\",-Quittung!F31,-F32)","v":0}]
["Verbleibende objektbezogene Vorsteuer",null,null,null,null,null,{"$f":"SUM(G28:G32)","v":0}]
[]
["Vorsteuerkorrektur aufgrund Einnahmen aus objektbezogener hoheitlicher Tätigkeit"]
[{"$f":"IF(Eingabe!C59=\"eigene Berechnung\",\"Eigene Berechnung\",Berechnungstabelle!A25)","v":"Einnahmen aus hoheitlicher Tätigkeit objektbezogen"},null,null,null,{"$f":"IF(A36=\"Eigene Berechnung\",\"\",Berechnungstabelle!G25)","v":1.081},{"$f":"IF(A36=\"Eigene Berechnung\",Berechnungstabelle!F35,Berechnungstabelle!F25)","v":0}]
[{"$f":"IF(Eingabe!C59=\"eigene Berechnung\",\"\",Berechnungstabelle!A26)","v":"Vorsteuerkorrektur objektbezogen"},null,null,null,{"$f":"IF(A36=\"Eigene Berechnung\",\"\",Berechnungstabelle!G26)","v":8.0999999999999961E-2},{"$f":"IF(A36=\"Eigene Berechnung\",\"\",Berechnungstabelle!F26)","v":0},{"$f":"IF(Eingabe!C59=\"eigene Berechnung\",-F36,-F37)","v":0}]
["Verbleibende objektbezogene Vorsteuer",null,null,null,null,null,{"$f":"SUM(G33:G37)","v":0}]
[]
["+ Angefallene nicht objektbezogene Vorsteuer",null,null,null,null,null,{"$f":"Eingabe!D46","v":0}]
["Total verbleibende Vorsteuer (objektbezogen + nicht objektbezogen)",null,null,null,null,null,{"$f":"SUM(G38:G40)","v":0}]
[]
["Vorsteuerkorrektur aufgrund Zinsertrag und Einnahmen aus Wertpapierhandel"]
[{"$f":"Berechnungstabelle!A46","v":"Umsatz aus steuerbaren und optierten Leistungen"},null,null,null,null,{"$f":"Berechnungstabelle!F46","v":0}]
[{"$f":"Berechnungstabelle!A47","v":"Umsatz aus befreiten Leistungen"},null,null,null,null,{"$f":"Berechnungstabelle!F47","v":0}]
[{"$f":"Berechnungstabelle!A48","v":"Umsatz aus Leistungen im Ausland"},null,null,null,null,{"$f":"Berechnungstabelle!F48","v":0}]
[{"$f":"Berechnungstabelle!A49","v":"Umsatz aus Zinseinnahmen und Einnahmen aus Wertpapierhandel"},null,null,null,null,{"$f":"Berechnungstabelle!F49","v":0}]
[{"$f":"Berechnungstabelle!A50","v":"Umsatz aus übrigen von der Steuer ausgenommenen Leistungen"},null,null,null,null,{"$f":"Berechnungstabelle!F50","v":0}]
[{"$f":"Berechnungstabelle!A51","v":"Total Bemessungsgrundlage der Vorsteuerkorrektur"},null,null,null,1,{"$f":"Berechnungstabelle!F51","v":0}]
["Zinsertrag und Einnahmen aus Wertpapierhandel",null,null,null,{"$f":"Berechnungstabelle!G52","v":0},{"$f":"Berechnungstabelle!F52","v":0}]
[null,{"$f":"Berechnungstabelle!A54","v":"Vorsteuerkorrektur aufgrund von Zinseinnahmen notwendig?"},null,null,{"$f":"Berechnungstabelle!E54","v":"Nein"}]
[null,{"$f":"Berechnungstabelle!A60","v":"Keine Vorsteuerkorrektur aufgrund Zins-/Wertpapiereinnahmen notwendig"},null,null,null,null,{"$f":"-Berechnungstabelle!F60","v":0}]
["Verbleibende Vorsteuer",null,null,null,null,null,{"$f":"SUM(G41:G52)","v":0},1]
[]
["Vorsteuerkürzung aufgrund nicht objektbezogener Subventionen"]
[{"$f":"Berechnungstabelle!A67","v":"Umsatz aus steuerbaren und optierten Leistungen"},null,null,null,null,{"$f":"Berechnungstabelle!F67","v":0}]
[{"$f":"Berechnungstabelle!A68","v":"Umsatz aus befreiten Leistungen"},null,null,null,null,{"$f":"Berechnungstabelle!F68","v":0}]
[{"$f":"Berechnungstabelle!A69","v":"Umsatz aus Leistungen im Ausland"},null,null,null,null,{"$f":"Berechnungstabelle!F69","v":0}]
["Umsatz aus Zinseinnahmen",null,null,null,null,{"$f":"Berechnungstabelle!F70","v":0}]
[{"$f":"Berechnungstabelle!A71","v":"Umsatz aus übrigen von der Steuer ausgenommenen Leistungen"},null,null,null,null,{"$f":"Berechnungstabelle!F71","v":0}]
["Einnahmen aus Spenden",null,null,null,null,{"$f":"Berechnungstabelle!F72","v":0}]
[{"$f":"Berechnungstabelle!A73","v":"Einnahmen aus hoheitlicher Tätigkeit nicht objektbezogen"},null,null,null,null,{"$f":"Berechnungstabelle!F73","v":0}]
[{"$f":"Berechnungstabelle!A74","v":"Subventionen nicht objektbezogen"},null,null,null,{"$f":"Berechnungstabelle!G74","v":0},{"$f":"Berechnungstabelle!F74","v":0}]
[{"$f":"Berechnungstabelle!A75","v":"Total Bemessungsgrundlage der Vorsteuerkürzung"},null,null,null,1,{"$f":"Berechnungstabelle!F75","v":0}]
[{"$f":"Berechnungstabelle!A78","v":"Vorsteuerkürzung nicht objektbezogen aufgrund anderer Subventionen"},null,null,null,null,null,{"$f":"-Berechnungstabelle!F78","v":0},{"$f":"E63","v":0}]
["Verbleibende Vorsteuer",null,null,null,null,null,{"$f":"SUM(G53:G65)","v":0},1]
[]
["Vorsteuerkorrektur aufgrund Einnahmen aus ausgenommenen Leistungen und hoheitlicher Tätigkeit"]
[{"$f":"Berechnungstabelle!A86","v":"Steuerbarer und optierter Umsatz + befreiter Umsatz + Leistungen im Ausland"},null,null,null,null,{"$f":"Berechnungstabelle!F86","v":0}]
[{"$f":"Berechnungstabelle!A87","v":"Ausgenommener Umsatz (ohne Zinseinnahmen/Einnahmen aus dem Handel "}]
[{"$f":"Berechnungstabelle!A88","v":"mit Wertpapieren) + Einnahmen aus hoheitlicher Tätigkeit nicht objektbezogen"},null,null,null,{"$f":"Berechnungstabelle!G88","v":0},{"$f":"Berechnungstabelle!F88","v":0}]
[{"$f":"Berechnungstabelle!A89","v":"Total Bemessungsgrundlage der Vorsteuerkorrektur"},null,null,null,1,{"$f":"Berechnungstabelle!F89","v":0}]
[{"$f":"Berechnungstabelle!A92","v":"Vorsteuerkorrektur gemischte Verwendung (ausgenommene Leistungen und hoheitliche Tätigkeit)"},null,null,null,null,null,{"$f":"-Berechnungstabelle!F92","v":0},{"$f":"E71","v":0}]
["Verbleibende Vorsteuer",null,null,null,null,null,{"$f":"SUM(G66:G73)","v":0}]
[]
["Korrekturen aufgrund Nutzungsänderungen (Eigenverbrauch/Einlageentsteuerung)"]
[{"$f":"Berechnungstabelle!A99","v":"Vorjahr: Steuerbarer und optierter Umsatz"},null,null,null,{"$f":"Berechnungstabelle!G99","v":0},{"$f":"Berechnungstabelle!F99","v":0}]
[{"$f":"Berechnungstabelle!A100","v":"Vorjahr: Ausgenommener Umsatz und Einnahmen aus hoheitlicher"}]
[{"$f":"Berechnungstabelle!A101","v":"Tätigkeit (nicht objektbezogen)"},null,null,null,{"$f":"Berechnungstabelle!G101","v":0},{"$f":"Berechnungstabelle!F101","v":0}]
[{"$f":"Berechnungstabelle!A102","v":"Total Bemessungsgrundlage der Vorsteuerkorrektur Vorjahr"},null,null,null,{"$f":"Berechnungstabelle!G102","v":1},{"$f":"Berechnungstabelle!F102","v":0}]
[]
[null,null,null,"Nutzungsänderung (Einlageentsteuerung/Eigenverbrauch)?",{"$f":"Berechnungstabelle!G108","v":"Nein"}]
[null,null,null,{"$f":"Berechnungstabelle!A112","v":"keine Nutzungsänderung (20 Jahre Abschreibungsdauer)"},null,null,{"$f":"G133","v":0}]
[null,null,null,{"$f":"Berechnungstabelle!A113","v":"keine Einlageentsteuerung (5 Jahre Abschreibungsdauer)"},null,null,{"$f":"G142","v":0}]
["Verbleibende Vorsteuer",null,null,null,null,null,{"$f":"SUM(G74:G84)","v":0}]
[]
[]
["Deklaration in der MWST-Abrechnung"]
["Ziffer","Beschreibung",null,null,null,null,"Betrag"]
[400,"Vorsteuer auf Material- und Dienstleistungsaufwand",null,null,null,null,{"$f":"Berechnungstabelle!F58","v":0}]
[405,"Vorsteuer auf Investitionen und übrigem Betriebsaufwand",null,null,null,null,{"$f":"Berechnungstabelle!F7","v":0}]
[410,"Einlageentsteuerung (Art. 32)",null,null,null,null,{"$f":"IF(G133+G142>0,G133+G142,0)","v":0}]
[415,"Vorsteuerkorrekturen: gemischte Verwendung (Art. 30) und Eigenverbrauch (Art. 31)",null,null,null,null,{"$f":"IF(G133+G142<0,G133+G142+G37+G52+G73,G37+G52+G73)","v":0}]
[420,"Vorsteuerkürzungen (Art. 33 Abs. 2)",null,null,null,null,{"$f":"G32+G65","v":0}]
[479,"Total Ziff. 400 bis 420",null,null,null,null,{"$f":"SUM(G90:G94)","v":0}]
[]
[]
[]
[]
[]
[]
[]
[]
[]
[]
["Berechnungsblatt zu MWST-Branchen-Info Gemeinwesen",null,null,null,"Seite 1 von 2",null,null,"Version 2024/09"]
[]
[]
[]
[null,null,null,null,null,"Eidgenössisches Finanzdepartement EFD\n\nEidgenössische Steuerverwaltung ESTV\nHauptabteilung Mehrwertsteuer"]
["Übersicht Berechnung Nutzungsänderung (Eigenverbrauch/Einlageentsteuerung)"]
["Jahr","angefallene Vorsteuer","Abschreibung","Zeitwert im laufenden Jahr","Massgebende Nutzung","Veränderung zum laufenden Jahr","Betrag"]
[{"$f":"Berechnungstabelle!A120","v":2024},null,null,null,{"$f":"Berechnungstabelle!F120","v":0}]
[{"$f":"Berechnungstabelle!A121","v":2023},{"$f":"Berechnungstabelle!B121","v":0},{"$f":"Berechnungstabelle!C121","v":0.05},{"$f":"Berechnungstabelle!D121","v":0},{"$f":"Berechnungstabelle!F121","v":0},{"$f":"Berechnungstabelle!H121","v":0},{"$f":"Berechnungstabelle!I121","v":0}]
[{"$f":"Berechnungstabelle!A122","v":2022},{"$f":"Berechnungstabelle!B122","v":0},{"$f":"Berechnungstabelle!C122","v":0.1},{"$f":"Berechnungstabelle!D122","v":0},{"$f":"Berechnungstabelle!F122","v":0},{"$f":"Berechnungstabelle!H122","v":0},{"$f":"Berechnungstabelle!I122","v":0}]
[{"$f":"Berechnungstabelle!A123","v":2021},{"$f":"Berechnungstabelle!B123","v":0},{"$f":"Berechnungstabelle!C123","v":0.15000000000000002},{"$f":"Berechnungstabelle!D123","v":0},{"$f":"Berechnungstabelle!F123","v":0},{"$f":"Berechnungstabelle!H123","v":0},{"$f":"Berechnungstabelle!I123","v":0}]
[{"$f":"Berechnungstabelle!A124","v":2020},{"$f":"Berechnungstabelle!B124","v":0},{"$f":"Berechnungstabelle!C124","v":0.2},{"$f":"Berechnungstabelle!D124","v":0},{"$f":"Berechnungstabelle!F124","v":0},{"$f":"Berechnungstabelle!H124","v":0},{"$f":"Berechnungstabelle!I124","v":0}]
[{"$f":"Berechnungstabelle!A125","v":2019},{"$f":"Berechnungstabelle!B125","v":0},{"$f":"Berechnungstabelle!C125","v":0.25},{"$f":"Berechnungstabelle!D125","v":0},{"$f":"Berechnungstabelle!F125","v":0},{"$f":"Berechnungstabelle!H125","v":0},{"$f":"Berechnungstabelle!I125","v":0}]
[{"$f":"Berechnungstabelle!A126","v":2018},{"$f":"Berechnungstabelle!B126","v":0},{"$f":"Berechnungstabelle!C126","v":0.3},{"$f":"Berechnungstabelle!D126","v":0},{"$f":"Berechnungstabelle!F126","v":0},{"$f":"Berechnungstabelle!H126","v":0},{"$f":"Berechnungstabelle!I126","v":0}]
[{"$f":"Berechnungstabelle!A127","v":2017},{"$f":"Berechnungstabelle!B127","v":0},{"$f":"Berechnungstabelle!C127","v":0.35},{"$f":"Berechnungstabelle!D127","v":0},{"$f":"Berechnungstabelle!F127","v":0},{"$f":"Berechnungstabelle!H127","v":0},{"$f":"Berechnungstabelle!I127","v":0}]
[{"$f":"Berechnungstabelle!A128","v":2016},{"$f":"Berechnungstabelle!B128","v":0},{"$f":"Berechnungstabelle!C128","v":0.39999999999999997},{"$f":"Berechnungstabelle!D128","v":0},{"$f":"Berechnungstabelle!F128","v":0},{"$f":"Berechnungstabelle!H128","v":0},{"$f":"Berechnungstabelle!I128","v":0}]
[{"$f":"Berechnungstabelle!A129","v":2015},{"$f":"Berechnungstabelle!B129","v":0},{"$f":"Berechnungstabelle!C129","v":0.44999999999999996},{"$f":"Berechnungstabelle!D129","v":0},{"$f":"Berechnungstabelle!F129","v":0},{"$f":"Berechnungstabelle!H129","v":0},{"$f":"Berechnungstabelle!I129","v":0}]
[{"$f":"Berechnungstabelle!A130","v":2014},{"$f":"Berechnungstabelle!B130","v":0},{"$f":"Berechnungstabelle!C130","v":0.49999999999999994},{"$f":"Berechnungstabelle!D130","v":0},{"$f":"Berechnungstabelle!F130","v":0},{"$f":"Berechnungstabelle!H130","v":0},{"$f":"Berechnungstabelle!I130","v":0}]
[{"$f":"Berechnungstabelle!A131","v":2013},{"$f":"Berechnungstabelle!B131","v":0},{"$f":"Berechnungstabelle!C131","v":0.54999999999999993},{"$f":"Berechnungstabelle!D131","v":0},{"$f":"Berechnungstabelle!F131","v":0},{"$f":"Berechnungstabelle!H131","v":0},{"$f":"Berechnungstabelle!I131","v":0}]
[{"$f":"Berechnungstabelle!A132","v":2012},{"$f":"Berechnungstabelle!B132","v":0},{"$f":"Berechnungstabelle!C132","v":0.6},{"$f":"Berechnungstabelle!D132","v":0},{"$f":"Berechnungstabelle!F132","v":0},{"$f":"Berechnungstabelle!H132","v":0},{"$f":"Berechnungstabelle!I132","v":0}]
[{"$f":"Berechnungstabelle!A133","v":2011},{"$f":"Berechnungstabelle!B133","v":0},{"$f":"Berechnungstabelle!C133","v":0.65},{"$f":"Berechnungstabelle!D133","v":0},{"$f":"Berechnungstabelle!F133","v":0},{"$f":"Berechnungstabelle!H133","v":0},{"$f":"Berechnungstabelle!I133","v":0}]
[{"$f":"Berechnungstabelle!A134","v":2010},{"$f":"Berechnungstabelle!B134","v":0},{"$f":"Berechnungstabelle!C134","v":0.70000000000000007},{"$f":"Berechnungstabelle!D134","v":0},{"$f":"Berechnungstabelle!F134","v":0},{"$f":"Berechnungstabelle!H134","v":0},{"$f":"Berechnungstabelle!I134","v":0}]
[{"$f":"Berechnungstabelle!A135","v":2009},{"$f":"Berechnungstabelle!B135","v":0},{"$f":"Berechnungstabelle!C135","v":0.75000000000000011},{"$f":"Berechnungstabelle!D135","v":0},{"$f":"Berechnungstabelle!F135","v":0},{"$f":"Berechnungstabelle!H135","v":0},{"$f":"Berechnungstabelle!I135","v":0}]
[{"$f":"Berechnungstabelle!A136","v":2008},{"$f":"Berechnungstabelle!B136","v":0},{"$f":"Berechnungstabelle!C136","v":0.80000000000000016},{"$f":"Berechnungstabelle!D136","v":0},{"$f":"Berechnungstabelle!F136","v":0},{"$f":"Berechnungstabelle!H136","v":0},{"$f":"Berechnungstabelle!I136","v":0}]
[{"$f":"Berechnungstabelle!A137","v":2007},{"$f":"Berechnungstabelle!B137","v":0},{"$f":"Berechnungstabelle!C137","v":0.8500000000000002},{"$f":"Berechnungstabelle!D137","v":0},{"$f":"Berechnungstabelle!F137","v":0},{"$f":"Berechnungstabelle!H137","v":0},{"$f":"Berechnungstabelle!I137","v":0}]
[{"$f":"Berechnungstabelle!A138","v":2006},{"$f":"Berechnungstabelle!B138","v":0},{"$f":"Berechnungstabelle!C138","v":0.90000000000000024},{"$f":"Berechnungstabelle!D138","v":0},{"$f":"Berechnungstabelle!F138","v":0},{"$f":"Berechnungstabelle!H138","v":0},{"$f":"Berechnungstabelle!I138","v":0}]
[{"$f":"Berechnungstabelle!A139","v":2005},{"$f":"Berechnungstabelle!B139","v":0},{"$f":"Berechnungstabelle!C139","v":0.95000000000000029},{"$f":"Berechnungstabelle!D139","v":0},{"$f":"Berechnungstabelle!F139","v":0},{"$f":"Berechnungstabelle!H139","v":0},{"$f":"Berechnungstabelle!I139","v":0}]
["Nutzungsänderung 20 Jahre (+ = Einlageentsteuerung; - = Eigenverbrauch)",null,null,null,null,null,{"$f":"ROUND(SUM(G114:G132)*20,0)/20","v":0}]
[]
["Vorhandene Vorsteuern aus Vorjahren / Abschreibungsdauer 5 Jahre"]
["Jahr","angefallene Vorsteuer","Abschreibung","Zeitwert im laufenden Jahr","Massgebende Nutzung","Veränderung zum laufenden Jahr","Betrag"]
[{"$f":"A113","v":2024},null,null,null,{"$f":"E113","v":0}]
[{"$f":"A114","v":2023},{"$f":"+Berechnungstabelle!B146","v":0},{"$f":"C137+0.2","v":0.2},{"$f":"B138*(100%-C138)","v":0},{"$f":"E114","v":0},{"$f":"F114","v":0},{"$f":"Berechnungstabelle!I146","v":0}]
[{"$f":"A138-1","v":2022},{"$f":"+Berechnungstabelle!B147","v":0},{"$f":"C138+0.2","v":0.4},0,{"$f":"E115","v":0},{"$f":"F115","v":0},{"$f":"Berechnungstabelle!I147","v":0}]
[{"$f":"A139-1","v":2021},{"$f":"+Berechnungstabelle!B148","v":0},{"$f":"C139+0.2","v":0.60000000000000009},0,{"$f":"E116","v":0},{"$f":"F116","v":0},{"$f":"Berechnungstabelle!I148","v":0}]
[{"$f":"A140-1","v":2020},{"$f":"+Berechnungstabelle!B149","v":0},{"$f":"C140+0.2","v":0.8},0,{"$f":"E117","v":0},{"$f":"F117","v":0},{"$f":"Berechnungstabelle!I149","v":0}]
["Nutzungsänderung 5 Jahre (+ = Einlageentsteuerung; - = Eigenverbrauch)",null,null,null,null,null,{"$f":"ROUND(SUM(G138:G141)*20,0)/20","v":0}]
[]
["Es ist im Einzelfall zu prüfen, ob die Berechnung des Vorsteuerabzugsrechts mit Hilfe dieses Formulars zu einem sachgerechten Ergebnis führt. Eine MWST-Kontrolle gemäss Art. 78 MWSTG bleibt vorbehalten."]
[]
[]
[]
[]
[]
[]
[]
[]
[]
[]
[]
[]
[]
[]
[]
[]
[]
[]
[]
[]
[]
[]
[]
[]
[]
[]
[]
[]
[]
[]
[]
[]
[]
[]
[]
[]
[]
[]
[]
[]
[]
[]
[]
[]
[]
[]
[]
[]
[]
[]
[]
[]
[]
[]
[]
[]
[]
[]
[]
[]
[]
[]
[]
[]
[]
[]
[]
[]
[]
[]
["Berechnungsblatt zu MWST-Branchen-Info Gemeinwesen",null,null,null,"Seite 2 von 2",null,null,"Version 2024/09"]

{"sheet":"Berechnungstabelle","index":2,"n_rows":150,"n_cols":11,"rows_kept":150,"cut":false,"hidden":true,"merged":[[12,0,12,3],[13,0,13,3],[2,0,2,3],[6,0,6,3],[7,0,7,3],[34,0,34,3],[27,0,27,3],[28,0,28,3],[23,0,23,3],[33,0,33,3],[49,0,49,3],[50,0,50,3],[60,0,60,3],[45,0,45,3],[46,0,46,3],[47,0,47,3],[48,0,48,3],[78,0,78,3],[67,0,67,3],[72,0,72,3],[70,0,70,3],[66,0,66,3],[68,0,68,3],[71,0,71,3],[69,0,69,3],[113,0,113,3],[92,0,92,3],[100,0,100,3],[103,0,103,3],[104,0,104,3],[105,0,105,3]]}
["2.1 Vorsteuerkürzung aufgrund objektbezogener Subventionen"]
[]
["Variante 1: Stille Versteuerung",null,null,null,null,"Betrag","Prozent"]
["Subvention (objektbezogen)",null,null,null,null,{"$f":"Quittung!F16","v":0},{"$f":"1+Eingabe!F5","v":1.081}]
["Vorsteuerkürzung objektbezogen",null,null,null,null,{"$f":"IF(F4>0,ROUND(F4/G4*G5*20,0)/20,0)","v":0},{"$f":"G4-1","v":8.0999999999999961E-2}]
[]
["Angefallene Vorsteuern (IR)",null,null,null,null,{"$f":"Eingabe!E46","v":0}]
["Vorsteuerkürzung objektbezogen",null,null,null,"./.",{"$f":"F5","v":0}]
["Verbleibende Vorsteuer Variante 1",null,null,null,"=",{"$f":"F7-F8","v":0}]
[]
[]
["Variante 2: gemäss eigener Berechnung",null,null,null,null,"Betrag"]
["Angefallene Vorsteuern (IR)",null,null,null,null,{"$f":"F7","v":0}]
["Vorsteuerkürzung objektbezogen gem. eigener Berechnung",null,null,null,"./.",{"$f":"IF(Eingabe!E56>0,Eingabe!E56,\"Stille Versteuerung\")","v":"Stille Versteuerung"}]
["Verbleibende Vorsteuer Variante 2",null,null,null,"=",{"$f":"F13-F14","v":{"$error":"#VALUE!"}}]
[]
[]
["Verbleibende Vorsteuer für weitere Berechnung",null,null,null,"=",{"$f":"IF(Eingabe!C55=\"Stille Versteuerung\",F9,F15)","v":0}]
[]
[]
["2.2 Vorsteuerkorrektur aufgrund objektbezogener Einnahmen im nicht"]
["      unternehmerischen Bereich"]
[]
["Variante 1: Stille Versteuerung",null,null,null,null,"Betrag","Prozent"]
["Einnahmen aus hoheitlicher Tätigkeit objektbezogen",null,null,null,null,{"$f":"Quittung!F19","v":0},{"$f":"1+Eingabe!F5","v":1.081}]
["Vorsteuerkorrektur objektbezogen",null,null,null,null,{"$f":"ROUND(F25/G25*G26*20,0)/20","v":0},{"$f":"G25-1","v":8.0999999999999961E-2}]
[]
["Verbleibende Vorsteuer Ziffer 2.1",null,null,null,null,{"$f":"Berechnungstabelle!F18","v":0}]
["Vorsteuerkorrektur objektbezogen",null,null,null,"./.",{"$f":"F26","v":0}]
["Verbleibende Vorsteuer Variante 1",null,null,null,"=",{"$f":"F28-F29","v":0}]
[]
[]
["Variante 2: gemäss eigener Berechnung",null,null,null,null,"Betrag"]
["Angefallene Vorsteuern (IR)",null,null,null,null,{"$f":"F28","v":0}]
["Vorsteuerkürzung objektbezogen gem. eigener Berechnung",null,null,null,"./.",{"$f":"IF(Eingabe!E60>0,Eingabe!E60,\"Stille Versteuerung\")","v":"Stille Versteuerung"}]
["Verbleibende Vorsteuer Variante 2",null,null,null,"=",{"$f":"F34-F35","v":{"$error":"#VALUE!"}}]
[]
[]
["Verbleibende Vorsteuer für weitere Berechnung",null,null,null,"=",{"$f":"IF(Eingabe!C59=\"Stille Versteuerung\",F30,F36)","v":0}]
[]
[]
["2.3 Vorsteuerkorrektur aufgrund von Zinseinnahmen und von"]
["      Einnahmen aus dem Handel mit Wertpapieren"]
[]
["Beschreibung",null,null,null,null,"Betrag","Prozent"]
["Umsatz aus steuerbaren und optierten Leistungen",null,null,null,null,{"$f":"Quittung!F8","v":0}]
["Umsatz aus befreiten Leistungen",null,null,null,"+",{"$f":"Quittung!F9","v":0}]
["Umsatz aus Leistungen im Ausland",null,null,null,"+",{"$f":"Quittung!F10","v":0}]
["Umsatz aus Zinseinnahmen und Einnahmen aus Wertpapierhandel",null,null,null,"+",{"$f":"Quittung!F13+Quittung!F12","v":0}]
["Umsatz aus übrigen von der Steuer ausgenommenen Leistungen",null,null,null,"+",{"$f":"Quittung!F14","v":0}]
["Total Bemessungsgrundlage der Vorsteuerkorrektur",null,null,null,null,{"$f":"SUM(F46:F50)","v":0},1]
["Zinsertrag (interner und externer; Konto 440X)  und Einnahmen aus Wertpapierhandel",null,null,null,null,{"$f":"F49","v":0},{"$f":"IF(F52>0,ROUND(G51/F51*F52,4),0%)","v":0}]
[]
["Vorsteuerkorrektur aufgrund von Zinseinnahmen notwendig?",null,null,null,{"$f":"IF(F52>10000,IF(G52>5%,\"Ja\",\"Nein\"),\"Nein\")","v":"Nein"}]
[]
["Beschreibung",null,null,null,null,"Betrag"]
["Verbleibende objektbezogene Vorsteuer gemäss Ziffer 2.2",null,null,null,null,{"$f":"Berechnungstabelle!F39","v":0}]
["nicht objektbezogene Vorsteuern",null,null,null,"+",{"$f":"Eingabe!D46","v":0}]
["Total verbleibende VOST",null,null,null,"=",{"$f":"SUM(F57:F58)","v":0}]
[{"$f":"IF(E54=\"Ja\",\"Vorsteuerkorrektur aufgrund von Zinseinnahmen: 0.02% vom Zinsertrag (CHF \" &F52 &\")\",\"Keine Vorsteuerkorrektur aufgrund Zins-/Wertpapiereinnahmen notwendig\")","v":"Keine Vorsteuerkorrektur aufgrund Zins-/Wertpapiereinnahmen notwendig"},null,null,null,"./.",{"$f":"IF(E54=\"Ja\",ROUND(F52*0.02%*20,0)/20,0)","v":0}]
["Verbleibende Vorsteuer",null,null,null,"=",{"$f":"F59-F60","v":0}]
[]
[]
["2.4 Vorsteuerkürzung aufgrund anderer Subventionen"]
[]
["Beschreibung",null,null,null,null,"Betrag","Prozent"]
["Umsatz aus steuerbaren und optierten Leistungen",null,null,null,null,{"$f":"Quittung!F8","v":0}]
["Umsatz aus befreiten Leistungen",null,null,null,"+",{"$f":"Quittung!F9","v":0}]
["Umsatz aus Leistungen im Ausland",null,null,null,"+",{"$f":"Quittung!F10","v":0}]
["Umsatz aus Zinseinnahmen",null,null,null,"+",{"$f":"Quittung!F12","v":0}]
["Umsatz aus übrigen von der Steuer ausgenommenen Leistungen",null,null,null,"+",{"$f":"Quittung!F14","v":0}]
["Einnahmen aus Spenden",null,null,null,"+",{"$f":"Quittung!F18","v":0}]
["Einnahmen aus hoheitlicher Tätigkeit nicht objektbezogen",null,null,null,"+",{"$f":"Quittung!F20","v":0}]
["Subventionen nicht objektbezogen",null,null,null,"+",{"$f":"Quittung!F17","v":0},{"$f":"IF(F74>0,ROUND(G75/F75*F74,4),0%)","v":0}]
["Total Bemessungsgrundlage der Vorsteuerkürzung",null,null,null,"=",{"$f":"SUM(F67:F74)","v":0},1]
[]
["Verbleibende Vorsteuer gemäss Ziffer 2.3",null,null,null,null,{"$f":"Berechnungstabelle!F61","v":0},1]
["Vorsteuerkürzung nicht objektbezogen aufgrund anderer Subventionen",null,null,null,"./.",{"$f":"ROUND(F77/G77*G78*20,0)/20","v":0},{"$f":"IF(F74>0,G74,0%)","v":0}]
["Verbleibende Vorsteuer",null,null,null,"=",{"$f":"F77-F78","v":0}]
[]
[]
["2.5 Vorsteuerkorrektur aufgrund von ausgenommenen Leistungen und "]
["      nicht objektbezogener Einnahmen aus hoheitlicher Tätigkeit"]
[]
["Beschreibung",null,null,null,null,"Betrag","Prozent"]
["Steuerbarer und optierter Umsatz + befreiter Umsatz + Leistungen im Ausland",null,null,null,null,{"$f":"Quittung!F8+Quittung!F9+Quittung!F10","v":0},{"$f":"IF(F89=0,0,ROUND(G89/F89*F86,4))","v":0}]
["Ausgenommener Umsatz (ohne Zinseinnahmen/Einnahmen aus dem Handel "]
["mit Wertpapieren) + Einnahmen aus hoheitlicher Tätigkeit nicht objektbezogen",null,null,null,"+",{"$f":"Quittung!F14+Quittung!F20","v":0},{"$f":"IF(F89=0,0,ROUND(G89/F89*F88,4))","v":0}]
["Total Bemessungsgrundlage der Vorsteuerkorrektur",null,null,null,"=",{"$f":"SUM(F86:F88)","v":0},1]
[]
["Verbleibende Vorsteuer gemäss Ziffer 2.4",null,null,null,null,{"$f":"Berechnungstabelle!F79","v":0},1]
["Vorsteuerkorrektur gemischte Verwendung (ausgenommene Leistungen und hoheitliche Tätigkeit)",null,null,null,"./.",{"$f":"ROUND(F91/G91*G92*20,0)/20","v":0},{"$f":"G88","v":0}]
["Verbleibende Vorsteuer",null,null,null,"=",{"$f":"F91-F92","v":0}]
[]
[]
["2.6 Nutzungsänderung"]
[]
["Beschreibung",null,null,null,null,"Betrag","Prozent"]
["Vorjahr: Steuerbarer und optierter Umsatz",null,null,null,null,{"$f":"Eingabe!F50","v":0},{"$f":"IF(F99>0,ROUND(G102/F102*F99,4),0)","v":0}]
["Vorjahr: Ausgenommener Umsatz und Einnahmen aus hoheitlicher"]
["Tätigkeit (nicht objektbezogen)",null,null,null,"+",{"$f":"Eingabe!F51+Eingabe!F52","v":0},{"$f":"IF(F102>0,ROUND(G102/F102*F101,4),0)","v":0}]
["Total Bemessungsgrundlage der Vorsteuerkorrektur Vorjahr",null,null,null,"=",{"$f":"SUM(F99:F101)","v":0},1]
[]
["Anteil ausgenommener Umsatz + Einnahmen aus hoheitlicher Tätigkeit nicht objektbezogen Vorjahr gemäss obiger Berechnung:",null,null,null,null,null,{"$f":"G101","v":0}]
["Anteil ausgenommener Umsatz + Einnahmen aus hoheitlicher Tätigkeit nicht objektbezogen laufendes Jahr gemäss Ziffer 2.5:",null,null,null,"./.",null,{"$f":"Berechnungstabelle!G88","v":0}]
["Nutzungsänderung gegenüber Vorjahr",null,null,null,"=",null,{"$f":"IF(G104+G105<>0,G104-G105,0%)","v":0}]
[]
["Liegt eine Nutzungsänderung vor, die eine Einlageentsteuerung/Eigenverbrauch auslöst?",null,null,null,null,null,{"$f":"IF(G106>20%,\"Ja\",IF(G106<-20%,\"Ja\",\"Nein\"))","v":"Nein"}]
[]
["Beschreibung",null,null,null,null,"Betrag"]
["Verbleibende Vorsteuer gemäss Ziffer 2.5",null,null,null,null,{"$f":"F93","v":0}]
[{"$f":"IF(G108=\"Ja\",IF(F112<0,\"Eigenverbrauch Vorsteuern mit 20 Jahren Abschreibungsdauer\",\"Einlageentsteuerung Vorsteuern mit 20 Jahren Abschreibungsdauer\"),\"keine Nutzungsänderung (20 Jahre Abschreibungsdauer)\")","v":"keine Nutzungsänderung (20 Jahre Abschreibungsdauer)"},null,null,null,{"$f":"IF(F112>0,\"+\",\"\")","v":""},{"$f":"I140","v":0}]
[{"$f":"IF(G108=\"Ja\",IF(F113<0,\"Eigenverbrauch Vorsteuern mit 5 Jahren Abschreibungsdauer\",\"Einlageentsteuerung Vorsteuern mit 5 Jahren Abschreibungsdauer\"),\"keine Einlageentsteuerung (5 Jahre Abschreibungsdauer)\")","v":"keine Einlageentsteuerung (5 Jahre Abschreibungsdauer)"},null,null,null,{"$f":"IF(F113>0,\"+\",\"\")","v":""},{"$f":"I150","v":0}]
["Verbleibende Vorsteuer",null,null,null,"=",{"$f":"SUM(F111:F113)","v":0}]
[]
[]
[]
["Vorhandene Vorsteuern aus Vorjahren / Abschreibungsdauer 20 Jahre"]
["Jahr","angefallene Vorsteuer","Abschreibung","Zeitwert im laufenden Jahr","Bisherige Nutzung im ausgenommenen Bereich","Massgebende Nutzung","Nutzungsänderung","Veränderung zum laufenden Jahr","Betrag","Zeile","massgebende Nutzung"]
[{"$f":"Eingabe!C5","v":2024},null,null,null,{"$f":"Eingabe!B66","v":0},{"$f":"E120","v":0},{"$f":"IF(E120-E121>20,\"Ja\",IF(E121-E120>20,\"Ja\",\"Nein\"))","v":"Nein"}]
[{"$f":"A120-1","v":2023},{"$f":"Eingabe!C67","v":0},{"$f":"C120+0.05","v":0.05},{"$f":"B121*(100%-C121)","v":0},{"$f":"Eingabe!B67","v":0},{"$f":"IF(J121<J$140,E121,K$140)","v":0},"Nein",{"$f":"F121-F120","v":0},{"$f":"IF(G120=\"Ja\",D121*H121/100,0)","v":0},{"$f":"ROW(G121)","v":121}]
[2022,{"$f":"Eingabe!C68","v":0},0.1,0,{"$f":"Eingabe!B68","v":0},0,"Nein",{"$f":"F122-F$120","v":0},{"$f":"IF(Berechnungstabelle!$G$108=\"Ja\",D122*H122/100,0)","v":0},122]
[2021,{"$f":"Eingabe!C69","v":0},0.15000000000000002,0,{"$f":"Eingabe!B69","v":0},0,"Nein",0,{"$f":"IF(Berechnungstabelle!$G$108=\"Ja\",D123*H123/100,0)","v":0},123]
[2020,{"$f":"Eingabe!C70","v":0},0.2,0,{"$f":"Eingabe!B70","v":0},0,"Nein",0,{"$f":"IF(Berechnungstabelle!$G$108=\"Ja\",D124*H124/100,0)","v":0},124]
[2019,{"$f":"Eingabe!C71","v":0},0.25,0,{"$f":"Eingabe!B71","v":0},0,"Nein",0,{"$f":"IF(Berechnungstabelle!$G$108=\"Ja\",D125*H125/100,0)","v":0},125]
[2018,{"$f":"Eingabe!C72","v":0},0.3,0,{"$f":"Eingabe!B72","v":0},0,"Nein",0,{"$f":"IF(Berechnungstabelle!$G$108=\"Ja\",D126*H126/100,0)","v":0},126]
[2017,{"$f":"Eingabe!C73","v":0},0.35,0,{"$f":"Eingabe!B73","v":0},0,"Nein",0,{"$f":"IF(Berechnungstabelle!$G$108=\"Ja\",D127*H127/100,0)","v":0},127]
[2016,{"$f":"Eingabe!C74","v":0},0.39999999999999997,0,{"$f":"Eingabe!B74","v":0},0,"Nein",0,{"$f":"IF(Berechnungstabelle!$G$108=\"Ja\",D128*H128/100,0)","v":0},128]
[2015,{"$f":"Eingabe!C75","v":0},0.44999999999999996,0,{"$f":"Eingabe!B75","v":0},0,"Nein",0,{"$f":"IF(Berechnungstabelle!$G$108=\"Ja\",D129*H129/100,0)","v":0},129]
[2014,{"$f":"Eingabe!C76","v":0},0.49999999999999994,0,{"$f":"Eingabe!B76","v":0},0,"Nein",0,{"$f":"IF(Berechnungstabelle!$G$108=\"Ja\",D130*H130/100,0)","v":0},130]
[2013,{"$f":"Eingabe!C77","v":0},0.54999999999999993,0,{"$f":"Eingabe!B77","v":0},0,"Nein",0,{"$f":"IF(Berechnungstabelle!$G$108=\"Ja\",D131*H131/100,0)","v":0},131]
[2012,{"$f":"Eingabe!C78","v":0},0.6,0,{"$f":"Eingabe!B78","v":0},0,"Nein",0,{"$f":"IF(Berechnungstabelle!$G$108=\"Ja\",D132*H132/100,0)","v":0},132]
[2011,{"$f":"Eingabe!C79","v":0},0.65,0,{"$f":"Eingabe!B79","v":0},0,"Nein",0,{"$f":"IF(Berechnungstabelle!$G$108=\"Ja\",D133*H133/100,0)","v":0},133]
[2010,{"$f":"Eingabe!C80","v":0},0.70000000000000007,0,{"$f":"Eingabe!B80","v":0},0,"Nein",0,{"$f":"IF(Berechnungstabelle!$G$108=\"Ja\",D134*H134/100,0)","v":0},134]
[2009,{"$f":"Eingabe!C81","v":0},0.75000000000000011,0,{"$f":"Eingabe!B81","v":0},0,"Nein",0,{"$f":"IF(Berechnungstabelle!$G$108=\"Ja\",D135*H135/100,0)","v":0},135]
[2008,{"$f":"Eingabe!C82","v":0},0.80000000000000016,0,{"$f":"Eingabe!B82","v":0},0,"Nein",0,{"$f":"IF(Berechnungstabelle!$G$108=\"Ja\",D136*H136/100,0)","v":0},136]
[2007,{"$f":"Eingabe!C83","v":0},0.8500000000000002,0,{"$f":"Eingabe!B83","v":0},0,"Nein",{"$f":"F137-F$120","v":0},{"$f":"IF(Berechnungstabelle!$G$108=\"Ja\",D137*H137/100,0)","v":0},137]
[2006,{"$f":"Eingabe!C84","v":0},0.90000000000000024,0,{"$f":"Eingabe!B84","v":0},0,"Nein",{"$f":"F138-F$120","v":0},{"$f":"IF(Berechnungstabelle!$G$108=\"Ja\",D138*H138/100,0)","v":0},138]
[2005,{"$f":"Eingabe!C85","v":0},0.95000000000000029,0,{"$f":"Eingabe!B85","v":0},0,null,{"$f":"F139-F$120","v":0},{"$f":"IF(Berechnungstabelle!$G$108=\"Ja\",D139*H139/100,0)","v":0},139]
["Nutzungsänderung 20 Jahre (+ = Einlageentsteuerung; - = Eigenverbrauch)",null,null,null,null,null,null,null,{"$f":"ROUND(SUM(I121:I139)*20,0)/20","v":0},{"$f":"_xlfn.XLOOKUP(\"Ja\",G121:G139,J121:J139,\"keine NÄ\")","v":"keine NÄ"},{"$f":"_xlfn.XLOOKUP(\"Ja\",G121:G138,E121:E138,\"keine NÄ\")","v":"keine NÄ"}]
[]
["Vorhandene Vorsteuern aus Vorjahren / Abschreibungsdauer 5 Jahre"]
["Jahr","angefallene Vorsteuer","Abschreibung","Zeitwert im laufenden Jahr","Bisherige Nutzung im ausgenom-menen Bereich",null,"Nutzungsänderung","Veränderung zum laufenden Jahr","Betrag","Zeile"]
[]
[{"$f":"A120","v":2024},null,null,null,{"$f":"E120","v":0},{"$f":"E145","v":0},{"$f":"IF(E145-E146>20,\"Ja\",IF(E146-E145>20,\"Ja\",\"Nein\"))","v":"Nein"}]
[{"$f":"A121","v":2023},{"$f":"Eingabe!D67","v":0},{"$f":"C145+0.2","v":0.2},{"$f":"B146*(100%-C146)","v":0},{"$f":"E121","v":0},{"$f":"IF(J146<J$150,E146,K$150)","v":0},{"$f":"IF(E146-E147>20,\"Ja\",IF(E147-E146>20,\"Ja\",\"Nein\"))","v":"Nein"},{"$f":"F146-F$145","v":0},{"$f":"IF(Berechnungstabelle!$G$108=\"Ja\",D146*H146/100,0)","v":0},{"$f":"ROW(G146)","v":146}]
[{"$f":"A146-1","v":2022},{"$f":"Eingabe!D68","v":0},{"$f":"C146+0.2","v":0.4},{"$f":"B147*(100%-C147)","v":0},{"$f":"E122","v":0},{"$f":"IF(J147<J$150,E147,K$150)","v":0},{"$f":"IF(E147-E148>20,\"Ja\",IF(E148-E147>20,\"Ja\",\"Nein\"))","v":"Nein"},{"$f":"F147-F$145","v":0},{"$f":"IF(Berechnungstabelle!$G$108=\"Ja\",D147*H147/100,0)","v":0},{"$f":"ROW(G147)","v":147}]
[{"$f":"A147-1","v":2021},{"$f":"Eingabe!D69","v":0},{"$f":"C147+0.2","v":0.60000000000000009},{"$f":"B148*(100%-C148)","v":0},{"$f":"E123","v":0},{"$f":"IF(J148<J$150,E148,K$150)","v":0},{"$f":"IF(E148-E149>20,\"Ja\",IF(E149-E148>20,\"Ja\",\"Nein\"))","v":"Nein"},{"$f":"F148-F$145","v":0},{"$f":"IF(Berechnungstabelle!$G$108=\"Ja\",D148*H148/100,0)","v":0},{"$f":"ROW(G148)","v":148}]
[{"$f":"A148-1","v":2020},{"$f":"Eingabe!D70","v":0},{"$f":"C148+0.2","v":0.8},{"$f":"B149*(100%-C149)","v":0},{"$f":"E124","v":0},{"$f":"IF(J149<J$150,E149,K$150)","v":0},"-",{"$f":"F149-F$145","v":0},{"$f":"IF(Berechnungstabelle!$G$108=\"Ja\",D149*H149/100,0)","v":0},{"$f":"ROW(G149)","v":149}]
["Nutzungsänderung 5 Jahre (+ = Einlageentsteuerung; - = Eigenverbrauch)",null,null,null,null,null,null,null,{"$f":"ROUND(SUM(I146:I149)*20,0)/20","v":0},{"$f":"_xlfn.XLOOKUP(\"Ja\",G146:G148,J146:J148,\"keine NÄ\")","v":"keine NÄ"},{"$f":"_xlfn.XLOOKUP(\"Ja\",G146:G148,E146:E148,\"keine NÄ\")","v":"keine NÄ"}]